bitfinex-derivatives/quotes_ETHF0:USTF0_20250712
["timestamp","ask_amount","ask_price","bid_price","bid_amount"]
[1752348613741,1.70886164,2937.4,2937.3,3.19756]
[1752348614141,1.02822164,2937.4,2937.3,3.19756]
[1752348614343,1.70886164,2937.4,2937.3,3.19756]
[1752348614531,1.02822164,2937.4,2937.3,3.19756]
[1752348619238,3.2078,2937.6,2937.5,1.33431]
[1752348619538,4.23860434,2937.6,2937.5,3.19751]
[1752348619938,3.2078,2937.6,2937.5,3.19751]
[1752348622446,4.9737127,2937.9,2937.8,3.19744]
[1752348622641,6.00380954,2937.9,2937.8,3.19744]
[1752348622841,5.32328954,2937.9,2937.8,3.19744]
[1752348623044,6.00380954,2937.9,2937.8,3.19744]
[1752348623548,1.03009684,2937.9,2937.8,3.19744]
[1752348624049,1.71061684,2937.9,2937.8,3.19744]
[1752348624251,1.67212,2937.9,2937.8,3.19744]
[1752348624448,2.30672,2937.9,2937.8,3.19744]
[1752348625945,1.6262,2937.9,2937.8,3.19744]
[1752348627143,0.6346,2937.9,2937.8,3.19744]
[1752348627841,3.2078,2938.2,2938.1,1.33417]
[1752348628043,6.94874974,2938.2,2938.1,3.19737]
[1752348628244,5.9193927,2938.2,2938.1,3.19737]
[1752348628848,6.5998427,2938.2,2938.1,3.19737]
[1752348630550,5.9193927,2938.2,2938.1,3.19737]
[1752348631449,3.2078,2938.2,2938.1,3.19737]
[1752348637763,1.29653,2938.3,2938.2,1.32375]
[1752348637962,2.20403,2938.3,2938.2,2.23385]
[1752348638164,1.5236,2938.3,2938.2,3.22235]
[1752348639965,2.20403,2938.3,2938.2,3.22235]
[1752348642068,1.5236,2938.3,2938.2,3.22235]
[1752348642266,2.20403,2938.3,2938.2,3.22235]
[1752348642461,1.5236,2938.3,2938.2,3.22235]
[1752348642769,2.20403,2938.3,2938.2,3.22235]
[1752348649174,3.23532734,2938.3,2938.2,3.22235]
[1752348658478,2.55489734,2938.3,2938.2,3.22235]
[1752348658876,3.23532734,2938.3,2938.2,3.22235]
[1752348659579,2.55489734,2938.3,2938.2,3.22235]
[1752348660075,3.23532734,2938.3,2938.2,3.22235]
[1752348660580,2.55489734,2938.3,2938.2,3.22235]
[1752348660782,3.23532734,2938.3,2938.2,3.22235]
[1752348663687,2.55489734,2938.3,2938.2,3.22235]
[1752348663881,3.23532734,2938.3,2938.2,3.22235]
[1752348665184,2.55489734,2938.3,2938.2,3.22235]
[1752348665484,3.23532734,2938.3,2938.2,3.22235]
[1752348666388,2.55489734,2938.3,2938.2,3.22235]
[1752348671192,1.64739734,2938.3,2938.2,3.22235]
[1752348671687,1.03129734,2938.3,2938.2,3.22235]
[1752348672787,2.6446927,2938.6,2938.5,1.29448]
[1752348673087,0.68031,2938.9,2938.5,1.29448]
[1752348673088,1.21951433,2938.9,2938.8,1.29441]
[1752348673391,2.25382146,2938.9,2938.8,3.16051]
[1752348673586,1.03430713,2938.9,2938.8,3.16051]
[1752348674289,3.2078,2939.2,2939.1,0.68024]
[1752348674593,1.034279,2939.2,2939.1,3.16044]
[1752348675485,0.6428,2939.4,2939.3,2.2462]
[1752348675686,1.67523295,2939.4,2939.3,3.1604]
[1752348676080,3.27190295,2939.4,2939.3,3.1604]
[1752348677487,2.23947,2939.4,2939.3,3.1604]
[1752348679186,1.5593,2939.4,2939.3,3.1604]
[1752348680384,2.23947,2939.4,2939.3,2.4802]
[1752348681191,1.828,2939.3,2939.0,0.9519]
[1752348681397,2.4708,2939.0,2938.9,1.8661]
[1752348681698,2.4708,2939.0,2938.9,2.4802]
[1752348682096,3.15107,2939.0,2938.9,2.4802]
[1752348682290,2.4708,2938.7,2938.6,2.4802]
[1752348682490,4.2365327,2938.7,2938.6,2.4802]
[1752348683491,4.2365327,2938.7,2938.6,3.16056]
[1752348686696,4.2365327,2938.7,2938.6,2.4802]
[1752348687095,3.1512,2938.5,2938.4,0.9519]
[1752348687300,4.2365927,2938.5,2938.4,2.4802]
[1752348687495,3.5561927,2938.5,2938.4,3.16061]
[1752348689394,2.6446927,2938.5,2938.4,3.16061]
[1752348692189,3.3250727,2938.5,2938.4,3.16061]
[1752348692398,2.6446927,2938.5,2938.4,3.16061]
[1752348693098,3.3250727,2938.5,2938.4,3.16061]
[1752348693499,2.6446927,2938.5,2938.4,3.16061]
[1752348694292,1.5593,2938.5,2938.4,3.16061]
[1752348694800,3.3250327,2938.7,2938.6,3.16056]
[1752348695593,2.6446927,2938.7,2938.6,3.16056]
[1752348696000,3.3250327,2938.7,2938.6,3.16056]
[1752348696602,2.6446927,2938.7,2938.6,3.16056]
[1752348698801,1.5593,2938.7,2938.6,3.16056]
[1752348699003,2.6621927,2938.9,2938.8,1.33161]
[1752348699302,3.69269209,2938.9,2938.8,3.17821]
[1752348699497,2.60729939,2938.9,2938.8,3.17821]
[1752348699704,3.8509,2939.1,2939.0,1.33157]
[1752348699903,5.8153405,2939.1,2939.0,3.17817]
[1752348700199,3.2078,2939.1,2939.0,3.17817]
[1752348721619,4.7846,2939.2,2939.1,1.33154]
[1752348721922,4.7846,2939.2,2939.1,3.17814]
[1752348724927,1.5768,2939.2,2939.1,3.17814]
[1752348725228,4.7846,2939.2,2939.1,3.17814]
[1752348725727,1.5768,2939.2,2939.1,3.17814]
[1752348725928,4.7846,2939.2,2939.1,3.17814]
[1752348726328,5.81693166,2939.2,2939.1,3.17814]
[1752348726525,4.24013166,2939.2,2939.1,3.17814]
[1752348726725,0.9242,2939.4,2939.3,1.3198]
[1752348726925,0.9242,2939.4,2939.3,3.1267]
[1752348727130,1.95655178,2939.4,2939.3,3.1267]
[1752348728931,1.82927149,2940.0,2939.9,3.12656]
[1752348728932,1.5519,2940.0,2939.9,3.12656]
[1752348729133,2.4671,2940.0,2939.9,3.12656]
[1752348730033,1.5519,2940.0,2939.9,6.33436]
[1752348730234,1.82927149,2940.4,2940.1,0.9028]
[1752348730435,1.5429,2940.4,2940.3,5.43147]
[1752348730628,2.6282927,2940.4,2940.3,6.33427]
[1752348730829,3.5524927,2940.4,2940.3,6.33427]
[1752348731031,1.5519,2940.4,2940.3,6.33427]
[1752348732630,2.4671,2940.4,2940.3,6.33427]
[1752348733534,2.4671,2940.4,2940.3,3.88777]
[1752348733734,3.5524927,2940.4,2940.3,4.79057]
[1752348734131,3.5524927,2940.4,2940.3,6.33427]
[1752348735531,4.2324327,2940.4,2940.3,5.43017]
[1752348736337,2.4671,2940.2,2940.0,3.2078]
[1752348736542,2.6282927,2940.1,2940.0,3.88783]
[1752348736840,3.5524927,2940.1,2940.0,3.88783]
[1752348737741,3.5524927,2940.1,2940.0,4.79063]
[1752348738736,3.5524927,2940.1,2940.0,5.43023]
[1752348738939,3.5524927,2940.1,2940.0,6.33433]
[1752348740739,1.5519,2940.1,2940.0,6.33433]
[1752348743239,2.4671,2940.1,2940.0,6.33433]
[1752348745342,1.5519,2940.1,2940.0,6.33433]
[1752348752446,1.5519,2940.1,2940.0,3.12653]
[1752348752646,1.5519,2940.1,2940.0,6.33433]
[1752348755248,1.7130927,2940.4,2940.3,1.31957]
[1752348755547,2.6282927,2940.4,2940.3,3.12647]
[1752348755747,3.3082327,2940.4,2940.3,3.12647]
[1752348755942,4.2324327,2940.4,2940.3,3.12647]
[1752348756346,5.24279086,2940.4,2940.3,3.12647]
[1752348757648,4.56285086,2940.4,2940.3,3.12647]
[1752348757948,3.47745816,2940.4,2940.3,3.12647]
[1752348759547,3.25997,2940.3,2940.2,0.67997]
[1752348759748,4.27032816,2940.3,2940.2,0.67997]
[1752348760150,0.68,2940.2,2940.1,0.67999]
[1752348760449,4.3453927,2940.2,2940.1,0.67999]
[1752348760845,3.6653927,2940.2,2940.1,0.67999]
[1752348761441,4.67795559,2940.2,2940.1,1.65999]
[1752348761846,4.67795559,2940.2,2940.1,3.24689]
[1752348761847,2.59666289,2940.2,2940.1,3.24689]
[1752348762850,1.5841,2940.2,2940.1,3.24689]
[1752348763351,2.59707037,2940.2,2940.1,3.24689]
[1752348768052,1.01297037,2940.2,2940.1,3.24689]
[1752348768461,1.5841,2940.4,2940.3,1.32047]
[1752348768659,2.59703882,2940.4,2940.3,3.24687]
[1752348769954,3.59293882,2940.4,2940.3,3.24687]
[1752348771060,4.27287882,2940.4,2940.3,3.24687]
[1752348771255,3.59293882,2940.4,2940.3,3.24687]
[1752348781972,4.27287882,2940.4,2940.3,3.24687]
[1752348782157,4.27287882,2940.4,2940.3,2.30047]
[1752348782463,2.58,2940.1,2940.0,0.68002]
[1752348782667,5.35834152,2940.1,2940.0,0.68002]
[1752348782862,5.35834152,2940.1,2940.0,1.66002]
[1752348783364,4.67833152,2940.1,2940.0,1.66002]
[1752348783962,5.35834152,2940.1,2940.0,0.68002]
[1752348784361,0.6302,2940.0,2939.6,4.1542]
[1752348784562,3.26008,2939.9,2939.8,0.68007]
[1752348784763,4.27227382,2939.9,2939.8,0.68007]
[1752348785062,3.59219382,2939.9,2939.8,0.68007]
[1752348785665,4.67758652,2939.9,2939.8,0.68007]
[1752348785864,5.35764652,2939.9,2939.8,0.68007]
[1752348787668,2.634,2939.8,2939.7,0.68008]
[1752348787970,5.34458652,2939.8,2939.7,0.68008]
[1752348788365,4.3323927,2939.8,2939.7,0.68008]
[1752348788565,4.66291767,2939.8,2939.7,1.67188]
[1752348789166,5.34299767,2939.8,2939.7,0.9918]
[1752348789368,5.34299767,2939.8,2939.7,0.6801]
[1752348789772,1.2931,2939.7,2939.6,3.2078]
[1752348789972,3.247,2939.7,2939.6,3.88793]
[1752348790169,0.68013,2939.6,2939.5,1.67193]
[1752348790477,4.3324227,2939.6,2939.5,0.68013]
[1752348790771,3.24707,2939.5,2939.4,0.68016]
[1752348790971,4.3324627,2939.5,2939.4,0.68016]
[1752348792167,0.68017,2939.4,2939.3,1.67199]
[1752348792470,3.24707,2939.4,2939.3,1.67199]
[1752348792972,3.24712,2939.2,2939.1,0.9918]
[1752348793171,4.3325127,2939.2,2939.1,0.9918]
[1752348793568,2.25514,2939.1,2939.0,1.67205]
[1752348793878,3.24714,2939.1,2939.0,1.67205]
[1752348794171,3.24714,2939.1,2939.0,3.20815]
[1752348794569,2.5669,2939.1,2939.0,3.20815]
[1752348795372,3.24714,2939.1,2939.0,3.20815]
[1752348796068,2.5669,2939.1,2939.0,3.20815]
[1752348796274,3.24714,2939.1,2939.0,2.5279]
[1752348796470,0.68027,2939.0,2938.9,0.68027]
[1752348796664,2.3786627,2939.0,2938.9,0.68029]
[1752348796869,2.6903927,2939.0,2938.9,1.67209]
[1752348797078,2.6903927,2939.0,2938.9,3.20819]
[1752348797269,3.6522927,2939.0,2938.9,3.20819]
[1752348799174,4.3325627,2939.0,2938.9,3.20819]
[1752348800677,3.6522927,2939.0,2938.9,3.20819]
[1752348800880,0.9619,2939.2,2939.1,0.6202]
[1752348801182,4.3325127,2939.2,2939.1,0.6202]
[1752348801576,1.5749,2939.0,2938.9,0.9918]
[1752348801781,4.3325627,2939.0,2938.9,0.9918]
[1752348802781,4.3325627,2939.0,2938.9,3.20819]
[1752348803081,4.3325627,2939.0,2938.9,1.612]
[1752348803582,4.3325627,2939.0,2938.9,2.29229]
[1752348803782,4.3325627,2939.0,2938.9,3.20819]
[1752348804481,3.3405627,2939.0,2938.9,3.20819]
[1752348804681,1.5749,2939.0,2938.9,3.20819]
[1752348805075,2.25517,2939.0,2938.9,3.20819]
[1752348805278,3.3405627,2939.0,2938.9,3.20819]
[1752348805478,4.3325627,2939.0,2938.9,3.20819]
[1752348806281,3.24728,2938.5,2938.4,2.5279]
[1752348806484,4.3326727,2938.5,2938.4,2.5279]
[1752348806883,4.3326727,2938.5,2938.4,3.2083]
[1752348809583,2.6602927,2938.5,2938.4,3.2083]
[1752348809885,2.6602927,2938.7,2938.6,3.20824]
[1752348810088,3.3406427,2938.7,2938.6,3.20824]
[1752348810286,4.3326427,2938.7,2938.6,3.20824]
[1752348810479,3.3406427,2938.7,2938.6,3.20824]
[1752348810986,4.3326427,2938.7,2938.6,2.5279]
[1752348811187,4.3326427,2938.7,2938.6,1.612]
[1752348811881,4.3326427,2938.7,2938.6,2.29236]
[1752348812487,4.3326427,2938.7,2938.6,3.20826]
[1752348813182,4.3326427,2938.7,2938.6,2.5279]
[1752348813681,4.3326427,2938.7,2938.6,3.20826]
[1752348813887,3.6522927,2938.7,2938.6,3.20826]
[1752348814083,2.6602927,2938.7,2938.6,3.20826]
[1752348815284,0.613,2938.9,2938.8,3.20821]
[1752348815486,3.2078,2939.0,2938.9,1.30049]
[1752348815688,3.2078,2939.0,2938.9,3.20819]
[1752348816789,3.2078,2939.3,2939.2,3.20452]
[1752348816986,4.7878,2939.3,2939.2,3.20452]
[1752348817190,5.468,2939.3,2939.2,3.20452]
[1752348817386,4.7878,2939.3,2939.2,3.20452]
[1752348817594,5.468,2939.3,2939.2,3.20452]
[1752348818092,6.47444471,2939.3,2939.2,3.20452]
[1752348818298,5.468,2939.3,2939.2,3.20452]
[1752348818586,1.58,2939.3,2939.2,3.20452]
[1752348819694,0.6435,2939.3,2939.2,3.20452]
[1752348819884,3.3455627,2939.5,2939.4,0.68017]
[1752348820083,4.35258116,2939.5,2939.4,3.20447]
[1752348821185,3.67241116,2939.5,2939.4,3.20447]
[1752348821389,4.35256116,2939.5,2939.4,2.5243]
[1752348821588,5.31476116,2939.5,2939.4,2.5243]
[1752348822593,5.31476116,2939.5,2939.4,3.20447]
[1752348823693,5.31476116,2939.5,2939.4,2.5243]
[1752348824901,5.31476116,2939.5,2939.4,3.20447]
[1752348825395,5.31476116,2939.5,2939.4,2.5243]
[1752348826795,5.31476116,2939.5,2939.4,3.20447]
[1752348827091,5.31476116,2939.5,2939.4,2.5243]
[1752348827497,5.31476116,2939.5,2939.4,3.20447]
[1752348828294,5.31476116,2939.5,2939.4,2.5243]
[1752348828597,5.31476116,2939.5,2939.4,3.20447]
[1752348829998,5.31546317,2939.5,2939.4,3.20447]
[1752348832895,1.00772047,2939.5,2939.4,3.20447]
[1752348833093,2.4090027,2939.7,2939.6,1.34503]
[1752348833293,2.4090027,2939.7,2939.6,3.20443]
[1752348833294,4.35305202,2939.7,2939.6,3.20443]
[1752348833489,4.35304202,2939.7,2939.6,3.20443]
[1752348838803,3.67294202,2939.7,2939.6,3.20443]
[1752348839003,4.35304202,2939.7,2939.6,3.20443]
[1752348839406,3.67294202,2939.7,2939.6,3.20443]
[1752348839906,2.73644202,2939.7,2939.6,3.20443]
[1752348840604,1.00754932,2939.7,2939.6,3.20443]
[1752348840806,3.88786,2939.9,2939.8,3.20438]
[1752348841002,6.9169679,2939.9,2939.8,3.20438]
[1752348841504,6.2369079,2939.9,2939.8,3.20438]
[1752348841706,5.3004079,2939.9,2939.8,3.20438]
[1752348841907,4.2931927,2939.9,2939.8,3.20438]
[1752348844701,1.0853927,2939.9,2939.8,3.20438]
[1752348846602,2.7080527,2939.9,2939.8,3.20438]
[1752348846803,3.3515527,2939.9,2939.8,3.20438]
[1752348847208,2.6714927,2939.9,2939.8,3.20438]
[1752348850614,3.3515527,2939.9,2939.8,3.20438]
[1752348851914,2.6714927,2939.9,2939.8,3.20438]
[1752348852819,3.3515527,2939.9,2939.8,3.20438]
[1752348853110,2.6714927,2939.9,2939.8,3.20438]
[1752348855420,3.3515527,2939.9,2939.8,3.20438]
[1752348856619,2.6714927,2939.9,2939.8,3.20438]
[1752348858118,3.3515527,2939.9,2939.8,3.20438]
[1752348859623,2.6714927,2939.9,2939.8,3.20438]
[1752348860324,3.3515527,2939.9,2939.8,3.20438]
[1752348861820,4.2601527,2939.9,2939.8,3.20438]
[1752348862724,3.5800927,2939.9,2939.8,3.20438]
[1752348863721,2.6714927,2939.9,2939.8,3.20438]
[1752348864222,3.3515527,2939.9,2939.8,3.20438]
[1752348864618,2.6714927,2939.9,2939.8,3.20438]
[1752348865126,3.68038346,2939.9,2939.8,3.20438]
[1752348865618,4.36044346,2939.9,2939.8,3.20438]
[1752348866419,5.26904346,2939.9,2939.8,3.20438]
[1752348866616,4.58898346,2939.9,2939.8,3.20438]
[1752348866822,3.68038346,2939.9,2939.8,3.20438]
[1752348867426,4.36044346,2939.9,2939.8,3.20438]
[1752348868326,3.68038346,2939.9,2939.8,3.20438]
[1752348870329,4.36044346,2939.9,2939.8,3.20438]
[1752348870531,3.68038346,2939.9,2939.8,3.20438]
[1752348875230,1.00889076,2939.9,2939.8,3.20438]
[1752348876033,1.0853927,2940.1,2940.0,2.25233]
[1752348876233,2.09533906,2940.1,2940.0,3.17323]
[1752348878732,2.09533906,2940.1,2940.0,6.38103]
[1752348878733,1.00994636,2940.1,2940.0,6.38103]
[1752348878933,1.21586371,2940.7,2940.6,0.6799]
[1752348879141,1.00936035,2940.7,2940.6,3.2034]
[1752348879333,2.09475305,2940.7,2940.6,3.2034]
[1752348880138,2.0265927,2940.7,2940.6,3.2034]
[1752348880936,4.2769627,2940.7,2940.6,3.2034]
[1752348881138,4.2769627,2940.7,2940.6,0.9945]
[1752348881831,3.5970927,2940.7,2940.4,1.59123]
[1752348882035,3.19164,2940.4,2940.3,0.67996]
[1752348882240,1.31377,2940.3,2940.2,0.67999]
[1752348882538,4.2770627,2940.3,2940.2,1.67449]
[1752348883735,3.5970927,2940.3,2940.2,1.67449]
[1752348884136,4.2770627,2940.3,2940.2,1.67449]
[1752348887642,4.2770627,2940.3,2940.2,3.20349]
[1752348889938,3.5970927,2940.3,2940.2,3.20349]
[1752348890243,2.6603927,2940.3,2940.2,3.20349]
[1752348891439,0.6338,2940.3,2940.2,3.20349]
[1752348892340,0.6338,2940.3,2939.9,4.90793]
[1752348892341,0.9412,2940.4,2940.3,3.20347]
[1752348892542,2.6603927,2940.5,2940.4,2.5235]
[1752348892742,2.6603927,2940.5,2940.4,3.20344]
[1752348897251,3.3403127,2940.5,2940.4,3.20344]
[1752348897443,4.2770127,2940.5,2940.4,3.20344]
[1752348898144,3.5970927,2940.5,2940.4,3.20344]
[1752348898754,2.6603927,2940.5,2940.4,3.20344]
[1752348901947,26.8350927,2940.9,2940.8,3.20335]
[1752348902145,27.84120755,2940.9,2940.8,3.20335]
[1752348902952,4.60320755,2940.9,2940.8,3.20335]
[1752348903148,5.28303755,2940.9,2940.8,3.20335]
[1752348903451,4.60320755,2940.9,2940.8,3.20335]
[1752348903649,1.63991485,2940.9,2940.8,3.20335]
[1752348903950,1.00611485,2940.9,2940.8,3.20335]
[1752348904751,1.94731485,2940.9,2940.8,3.20335]
[1752348905249,1.94731485,2940.9,2940.8,6.41115]
[1752348905849,3.03270755,2940.9,2940.8,6.41115]
[1752348908054,4.32373755,2940.9,2940.8,6.41115]
[1752348908653,3.64390755,2940.9,2940.8,6.41115]
[1752348909456,3.6465625,2940.9,2940.8,6.41115]
[1752348909755,3.6476398,2940.9,2940.8,6.41115]
[1752348910449,2.0952398,2940.9,2940.8,6.41115]
[1752348910650,0.00265495,2940.9,2940.8,6.41115]
[1752348910848,1.21586371,2941.6,2941.5,0.6168]
[1752348911154,1.5387,2941.8,2941.7,0.6168]
[1752348911344,4.54735765,2941.8,2941.7,2.4844]
[1752348911549,4.54735765,2941.8,2941.7,3.16404]
[1752348912451,3.63115765,2941.8,2941.7,3.16404]
[1752348912748,1.5387,2942.1,2942.0,1.29637]
[1752348912955,3.63051315,2942.1,2942.0,3.16397]
[1752348913150,2.54512045,2942.1,2942.0,3.16397]
[1752348913349,3.63051315,2942.1,2942.0,3.16397]
[1752348914156,2.6240927,2942.1,2942.0,3.16397]
[1752348915861,1.5387,2942.1,2942.0,3.16397]
[1752348916358,2.6240927,2942.1,2942.0,3.16397]
[1752348916756,3.3036427,2942.1,2942.0,3.16397]
[1752348916957,3.2923427,2942.1,2942.0,3.16397]
[1752348917159,4.2198427,2942.1,2942.0,3.16397]
[1752348918160,3.5402927,2942.1,2942.0,3.16397]
[1752348918458,2.6240927,2942.1,2942.0,3.16397]
[1752348918659,1.5387,2942.1,2942.0,3.16397]
[1752348919055,3.819,2942.2,2942.1,1.29635]
[1752348919260,4.7465,2942.2,2942.1,3.16395]
[1752348920257,1.5387,2941.5,2941.4,4.7603]
[1752348920456,2.6240927,2941.5,2941.4,6.37191]
[1752348920653,1.5387,2941.7,2941.6,1.29647]
[1752348920852,1.5387,2941.7,2941.4,3.2078]
[1752348920853,23.224,2941.9,2941.8,0.67962]
[1752348921154,5.8318927,2942.2,2942.1,1.29635]
[1752348921357,4.7465,2942.2,2942.1,3.16395]
[1752348922150,1.5387,2942.4,2942.3,1.2963]
[1752348922356,1.00337289,2942.4,2942.3,4.2492927]
[1752348922555,3.2078,2942.8,2942.7,1.29621]
[1752348922760,4.1353,2943.1,2943.0,3.16374]
[1752348923062,4.7465,2943.1,2943.0,3.16374]
[1752348923257,0.9275,2943.3,2943.2,0.6793]
[1752348923561,0.9275,2943.3,2943.2,3.1637]
[1752348924562,0.9275,2943.3,2942.8,1.69843]
[1752348924563,3.2078,2943.4,2943.3,3.16367]
[1752348927464,3.2078,2943.4,2942.9,2.7837727]
[1752348927465,1.5387,2943.5,2943.4,3.16364]
[1752348927659,1.5387,2943.9,2943.8,0.6168]
[1752348927859,1.5387,2943.9,2943.8,2.4844]
[1752348928457,3.13403,2943.9,2943.8,2.4844]
[1752348929260,0.67925,2943.4,2943.3,0.9319]
[1752348929453,4.2195427,2943.4,2943.3,1.5487]
[1752348930966,4.2195427,2943.4,2943.3,3.16367]
[1752348931161,4.2195427,2943.4,2943.3,2.4844]
[1752348931865,0.6112,2943.2,2943.1,3.8246]
[1752348932059,2.4549,2943.2,2943.1,2.4844]
[1752348932262,3.1342,2943.2,2943.1,2.4844]
[1752348932560,4.2195927,2943.2,2943.1,3.16372]
[1752348932761,3.3033927,2943.2,2943.1,3.16372]
[1752348932956,2.6240927,2943.2,2943.1,3.16372]
[1752348934062,1.5387,2943.4,2943.3,2.4844]
[1752348934267,1.5387,2943.4,2943.3,3.16367]
[1752348934867,2.6240927,2943.4,2943.3,3.16367]
[1752348935166,3.3033427,2943.4,2943.3,3.16367]
[1752348935562,1.5387,2943.4,2943.3,3.16367]
[1752348935760,2.6240927,2943.4,2943.3,3.16367]
[1752348936272,4.2262427,2943.4,2943.3,2.4844]
[1752348936467,1.28,2943.2,2943.1,5.7659]
[1752348936669,4.1942927,2943.2,2943.1,5.7659]
[1752348936871,4.1942927,2943.2,2943.1,2.5581]
[1752348937071,4.1942927,2943.2,2943.1,1.616]
[1752348937272,1.5236,2943.0,2942.8,0.9617]
[1752348937570,1.28011,2942.7,2942.6,3.23751]
[1752348937775,4.1944027,2942.7,2942.6,3.23751]
[1752348938578,3.5149927,2942.7,2942.6,3.23751]
[1752348938868,2.5920927,2942.7,2942.6,3.23751]
[1752348940066,3.2715027,2942.7,2942.6,3.23751]
[1752348940672,4.1944027,2942.7,2942.6,3.23751]
[1752348942473,3.5149927,2942.7,2942.6,3.23751]
[1752348942668,4.1944027,2942.7,2942.6,3.23751]
[1752348944880,3.5149927,2942.7,2942.6,3.23751]
[1752348947276,2.5920927,2942.7,2942.6,3.23751]
[1752348949480,1.5067,2942.7,2942.6,3.23751]
[1752348951886,2.18611,2942.7,2942.6,3.23751]
[1752348952279,1.5067,2942.7,2942.6,3.23751]
[1752348954878,3.2078,2943.0,2942.8,0.6543]
[1752348955084,4.7145,2943.0,2942.9,3.23747]
[1752348955280,5.71015209,2943.0,2942.9,3.23747]
[1752348960384,4.80415209,2943.0,2942.9,3.23747]
[1752348960589,5.71015209,2943.0,2942.9,3.23747]
[1752348960987,4.80415209,2943.0,2942.9,3.23747]
[1752348961186,4.20345209,2943.0,2942.9,3.23747]
[1752348962293,7.71844479,2943.0,2942.9,3.23747]
[1752348962991,8.39778479,2943.0,2942.9,3.23747]
[1752348963289,6.79554479,2943.0,2942.9,3.23747]
[1752348964094,5.71015209,2943.0,2942.9,3.23747]
[1752348965292,0.99565209,2943.0,2942.9,3.23747]
[1752348965597,0.906,2943.2,2943.1,3.23742]
[1752348965794,2.50396872,2943.2,2943.1,3.23742]
[1752348966096,3.58936142,2943.2,2943.1,3.23742]
[1752348966492,1.90326872,2943.2,2943.1,3.23742]
[1752348966694,3.26246872,2943.2,2943.1,3.23742]
[1752348966888,4.24086872,2943.2,2943.1,2.29532]
[1752348967288,4.24086872,2943.2,2943.1,1.616]
[1752348967490,4.24086872,2943.2,2943.1,0.9617]
[1752348967690,4.24086872,2943.2,2942.8,0.67937]
[1752348967691,0.92,2942.9,2942.8,0.67937]
[1752348967996,1.34529,2942.8,2942.7,0.6794]
[1752348968294,4.24095872,2942.8,2942.7,0.6794]
[1752348969187,4.24095872,2942.8,2942.7,1.5832]
[1752348970092,4.24095872,2942.8,2942.7,2.2248]
[1752348970293,3.56156872,2942.8,2942.7,3.1825]
[1752348970696,3.24369,2942.8,2942.7,3.1825]
[1752348971394,2.5643,2942.8,2942.7,3.1825]
[1752348972800,1.5859,2942.8,2942.7,3.1825]
[1752348973397,0.67935,2943.0,2942.9,1.32097]
[1752348973398,1.5859,2943.0,2942.9,1.32097]
[1752348973606,2.58411926,2943.0,2942.9,3.18247]
[1752348973897,3.26345926,2943.0,2942.9,3.18247]
[1752348974096,3.66951196,2943.0,2942.9,3.18247]
[1752348974297,4.64791196,2943.0,2942.9,3.18247]
[1752348975399,5.32725196,2943.0,2942.9,3.18247]
[1752348976609,5.32725196,2943.0,2942.9,1.58317]
[1752348976798,5.32709796,2943.0,2942.9,1.58317]
[1752348977305,5.32709796,2943.0,2942.9,3.18247]
[1752348979707,5.32709796,2943.0,2942.9,2.22477]
[1752348980006,5.32709796,2943.0,2942.9,3.18247]
[1752348980301,4.64775796,2943.0,2942.9,3.18247]
[1752348980503,3.66935796,2943.0,2942.9,3.18247]
[1752348980706,4.34869796,2943.0,2942.9,3.18247]
[1752348982006,3.66935796,2943.0,2942.9,3.18247]
[1752348982710,4.34869796,2943.0,2942.9,3.18247]
[1752348983804,3.66935796,2943.0,2942.9,3.18247]
[1752348984209,4.34869796,2943.0,2942.9,3.18247]
[1752348985207,5.32709796,2943.0,2942.9,3.18247]
[1752348985905,0.67941,2942.8,2942.6,0.9577]
[1752348986110,4.3291027,2942.8,2942.7,3.18248]
[1752348986409,4.64779251,2942.8,2942.7,3.18248]
[1752348986908,5.32718251,2942.8,2942.7,3.18248]
[1752348987111,0.6659,2942.3,2942.2,0.9038]
[1752348987309,3.6496927,2942.3,2942.2,1.58333]
[1752348987506,3.6496927,2942.3,2942.2,3.18263]
[1752348988008,2.6712927,2942.3,2942.2,3.18263]
[1752348990912,2.4307127,2942.7,2942.6,3.18253]
[1752348991206,1.66268039,2942.7,2942.6,3.18253]
[1752348991406,2.58268039,2942.7,2942.6,3.18253]
[1752348994408,4.34748309,2942.7,2942.6,3.18253]
[1752348994613,5.32588309,2942.7,2942.6,3.18253]
[1752348994914,4.64647309,2942.7,2942.6,3.18253]
[1752348995912,5.32588309,2942.7,2942.6,3.18253]
[1752348996112,5.32588309,2942.7,2942.6,2.22483]
[1752348996510,2.5564,2942.5,2942.4,0.9075]
[1752348996713,3.6417927,2942.5,2942.4,0.9075]
[1752348997416,4.3212827,2942.5,2942.4,0.67946]
[1752348998412,5.31776608,2942.5,2942.4,0.67946]
[1752348999213,0.6795,2942.4,2942.3,0.67949]
[1752348999418,4.3212927,2942.4,2942.3,1.58699]
[1752349000213,4.3212927,2942.4,2942.3,2.22009]
[1752349000414,4.3212927,2942.4,2942.3,3.12829]
[1752349003311,4.3212927,2942.4,2942.3,2.22009]
[1752349003514,5.31768961,2942.4,2942.3,1.5406]
[1752349003720,5.31768961,2942.4,2942.1,1.5406]
[1752349003721,3.23593,2942.2,2942.1,1.5406]
[1752349003921,4.3213227,2942.2,2942.1,1.5406]
[1752349004827,4.3213227,2942.2,2942.1,2.22013]
[1752349005432,4.3213227,2942.2,2942.1,1.58703]
[1752349008432,4.3213227,2942.2,2942.1,3.12833]
[1752349009735,1.34225,2942.1,2942.0,4.1153]
[1752349009937,3.23595,2942.1,2942.0,5.42797]
[1752349010137,3.23595,2942.1,2942.0,6.33617]
[1752349013037,3.23595,2942.1,2942.0,3.12837]
[1752349013237,3.23595,2942.1,2942.0,0.9075]
[1752349013541,4.23205911,2942.1,2942.0,0.9075]
[1752349014736,3.236,2941.9,2941.8,0.9075]
[1752349015050,5.31704364,2941.9,2941.8,0.9075]
[1752349015242,5.31704364,2941.9,2941.8,1.8157]
[1752349015540,5.31704364,2941.9,2941.8,1.5406]
[1752349015738,5.31704364,2941.9,2941.8,0.9075]